fUSD/lending_fUSD_20240317
["ID","MTS","AMOUNT","RATE_DAILY","PERIOD"]
[319346729,1710688242765,-1000.0,0.00017157,2]
[319346730,1710688242775,-633.77,0.0001734,2]
[319346731,1710688242785,-209.37,0.00017373,2]
[319346732,1710688242794,-209.37,0.00017437,2]
[319346733,1710688242803,-181.79,0.00017459,2]
[319346734,1710688242815,-157.53829791,0.0001746,2]
[319346735,1710688242824,-209.37,0.00017501,2]
[319346736,1710688242833,-150.99,0.0001753,2]
[319346737,1710688242842,-167.0,0.00017546,2]
[319346738,1710688242851,-209.37,0.00017565,2]
[319346739,1710688242861,-190.17,0.00017566,2]
[319346740,1710688242870,-209.37,0.00017629,2]
[319346741,1710688242880,-153.01160755,0.00017636,2]
[319346742,1710688242892,-152.23725879,0.00017673,2]
[319346743,1710688242902,-209.37,0.00017693,2]
[319346744,1710688242911,-167.0,0.00017732,2]
[319346745,1710688242921,-209.37,0.00017757,2]
[319346746,1710688242930,-154.52759481,0.00017783,2]
[319346747,1710688242941,-500.0,0.00017808,2]
[319346749,1710688242950,-157.53829791,0.0001782,2]
[319346751,1710688242959,-209.37,0.00017821,2]
[319346753,1710688242968,-209.37,0.00017885,2]
[319346755,1710688242978,-152.23725879,0.00017915,2]
[319346757,1710688242988,-209.37,0.00017949,2]
[319346759,1710688242997,-30890.89691374,0.00017987,2]
[319346761,1710688243006,-178.27,0.00018,2]
[319346763,1710688243015,-260.49,0.00018,2]
[319346765,1710688243025,-1500.0,0.00018,2]
[319346767,1710688243035,-1500.0,0.00018,2]
[319346768,1710688243043,-1500.0,0.00018,2]
[319346770,1710688243053,-1500.0,0.00018,2]
[319346772,1710688243065,-1500.0,0.00018,2]
[319346774,1710688243074,-1500.0,0.00018,2]
[319346776,1710688243084,-209.37,0.00018013,2]
[319346778,1710688243093,-209.37,0.00018077,2]
[319346780,1710688243102,-260.49,0.00018137,2]
[319346782,1710688243112,-1486.62,0.00018141,2]
[319346784,1710688243121,-209.37,0.00018141,2]
[319346786,1710688243130,-157.53829791,0.0001818,2]
[319346788,1710688243139,-150.0,0.00018192,2]
[319346790,1710688243149,-150.0,0.00018192,2]
[319346792,1710688243158,-150.0,0.00018192,2]
[319346794,1710688243168,-150.0,0.00018192,2]
[319346796,1710688243177,-209.37,0.00018205,2]
[319346798,1710688243186,-167.0,0.00018207,2]
[319346800,1710688243196,-500.0,0.00018219,2]
[319346802,1710688243206,-209.37,0.00018269,2]
[319346804,1710688243215,-260.49,0.00018274,2]
[319346806,1710688243223,-300.0,0.00018278,2]
[319346808,1710688243232,-515.45,0.00018278,2]
[319346810,1710688243241,-150.0,0.00018278,2]
[319346812,1710688243250,-345.92,0.00018278,2]
[319346814,1710688243259,-301.32,0.00018278,2]
[319346816,1710688243268,-209.37,0.00018333,2]
[319346818,1710688243278,-155.99355924,0.00018337,2]
[319346820,1710688243287,-150.0,0.0001837,2]
[319346822,1710688243296,-922.44,0.00018392,2]
[319346824,1710688243306,-922.44,0.00018392,2]
[319346826,1710688243315,-922.44,0.00018392,2]
[319346828,1710688243324,-922.44,0.00018392,2]
[319346830,1710688243332,-922.44,0.00018392,2]
[319346832,1710688243342,-922.44,0.00018392,2]
[319346834,1710688243351,-922.18,0.00018392,2]
[319346836,1710688243360,-209.37,0.00018397,2]
[319346838,1710688243370,-300.0,0.000184,2]
[319346840,1710688243379,-260.49,0.00018411,2]
[319346842,1710688243388,-209.37,0.00018461,2]
[319346844,1710688243397,-150.0,0.00018462,2]
[319346846,1710688243406,-150.0,0.00018462,2]
[319346848,1710688243416,-150.0,0.00018462,2]
[319346850,1710688243425,-150.0,0.00018462,2]
[319346852,1710688243434,-150.0,0.00018462,2]
[319346854,1710688243443,-150.0,0.00018462,2]
[319346856,1710688243452,-150.0,0.00018462,2]
[319346858,1710688243461,-150.0,0.00018462,2]
[319346860,1710688243470,-150.0,0.00018462,2]
[319346862,1710688243479,-209.37,0.00018525,2]
[319346864,1710688243488,-157.53829791,0.0001854,2]
[319346866,1710688243497,-356.33,0.00018548,2]
[319346868,1710688243507,-520.38,0.00018548,2]
[319346870,1710688243516,-150.0,0.00018552,2]
[319346872,1710688243525,-209.37,0.00018589,2]
[319346874,1710688243534,-161.39,0.000186,2]
[319346876,1710688243544,-498.0,0.000186,2]
[319346878,1710688243553,-155.08176692,0.00018609,2]
[319346880,1710688243565,-500.0,0.0001863,2]
[319346882,1710688243575,-500.0,0.0001863,2]
[319346884,1710688243584,-547.10099141,0.0001863,2]
[319346886,1710688243594,-159.88,0.00018663,2]
[319346888,1710688243603,-152.23725879,0.00018691,2]
[319346890,1710688243612,-10800.15948842,0.000188,2]
[319346892,1710688243622,-500.0,0.000188,2]
[319346894,1710688243631,-71031.85520958,0.00018885,2]
[319346895,1710688243640,-7673.21855973,0.00018887,2]
[319346897,1710688243650,-181.58959178,0.00018889,2]
[319346899,1710688243660,-181.58959178,0.00018889,2]
[319346901,1710688243669,-5741.43880795,0.000189,2]
[319346904,1710688243679,-181.58959178,0.000189,2]
[319346905,1710688243688,-157.53829791,0.000189,2]
[319346908,1710688243698,-217.14901077,0.00018979,2]
[319346910,1710688243707,-332837.60613191,0.00018982,3]
[319346931,1710688243901,-327.64786755,0.00018982,3]
[319346934,1710688243914,-3649.3659331,0.00018982,3]
[319346936,1710688243926,-5149.61211203,0.00018982,3]
[319346939,1710688243946,-965.634495,0.00018982,3]
[319346941,1710688243957,-1661.60734328,0.00018982,3]
[319347108,1710688245637,-1546.74,0.00018,2]
[319347111,1710688245647,-1500.0,0.00018,2]
[319347114,1710688245656,-1500.0,0.00018,2]
[319347116,1710688245665,-17713.92411788,0.00018982,3]
[319347120,1710688245700,-704.6,0.00018982,3]
[319347189,1710688246524,-1500.0,0.00018,2]
[319347190,1710688246533,-214.0,0.00018982,3]
[319347191,1710688246546,-150584.36117606,0.00018982,3]
[319347192,1710688246650,-19626.97992232,0.00018982,3]
[319347193,1710688246766,-33360.38853212,0.00018982,3]
[319347194,1710688246778,-595.019566,0.00018982,3]
[319347199,1710688686472,-292.0,0.0001956,15]
[319347200,1710688686496,-152.16,0.0001956,15]
[319347201,1710688686520,-154.42,0.0001956,15]
[319347202,1710688686543,-292.0,0.0001956,15]
[319347203,1710688686566,-150.5,0.0001957,15]
[319347204,1710688686589,-292.0,0.0001957,15]
[319347205,1710688686615,-150.5,0.0001957,15]
[319347206,1710688686638,-292.0,0.0001957,15]
[319347207,1710688686673,-292.0,0.0001957,15]
[319347208,1710688686697,-293.16,0.0001957,15]
[319347209,1710688686721,-155.35,0.0001958,15]
[319347210,1710688686743,-152.35,0.0001958,15]
[319347211,1710688686766,-152.08,0.0001958,15]
[319347212,1710688686790,-150.5,0.0001958,15]
[319347213,1710688686813,-292.0,0.0001958,15]
[319347214,1710688687078,-153.31,0.0001958,15]
[319347215,1710688687104,-151.22,0.0001958,15]
[319347216,1710688687128,-150.76,0.0001958,15]
[319347217,1710688687156,-150.5,0.0001958,15]
[319347218,1710688687184,-292.0,0.0001958,15]
[319347219,1710688687208,-292.0,0.0001958,15]
[319347220,1710688687231,-292.0,0.0001958,15]
[319347221,1710688687280,-2902.85,0.00021918,10]
[319347222,1710688687331,-702.0,0.00022,10]
[319347223,1710688687359,-702.0,0.000225,10]
[319347224,1710688687385,-702.0,0.00023,11]
[319347225,1710688687411,-702.0,0.000235,11]
[319347226,1710688687437,-724.26521493,0.000238,15]
[319347227,1710688687463,-531.07607617,0.00024,30]
[319347228,1710688687486,-201.67065339,0.00024,33]
[319347229,1710688687509,-150.0,0.00024,10]
[319347230,1710688687532,-702.0,0.00024,12]
[319347231,1710688687559,-702.0,0.000245,12]
[319347232,1710688687582,-2902.85,0.00024658,10]
[319347233,1710688687604,-20000.0,0.000247,31]
[319347234,1710688687629,-300282.30993053,0.00025,30]
[319347235,1710688687651,-2345.41756306,0.00025,10]
[319347236,1710688687674,-4000.09786688,0.00025,20]
[319347237,1710688687696,-702.0,0.00025,13]
[319347238,1710688687721,-172.03,0.00025433,120]
[319347239,1710688687743,-702.0,0.000255,13]
[319347240,1710688687767,-364.29,0.00025569,120]
[319347241,1710688687791,-230.35,0.00025721,120]
[319347242,1710688687814,-732.9868352,0.00026,27]
[319347243,1710688687836,-702.0,0.00026,14]
[319347244,1710688687859,-500.0,0.0002628,90]
[319347245,1710688687883,-190.17,0.00026349,120]
[319347246,1710688687907,-702.0,0.000265,14]
[319347247,1710688687931,-20000.0,0.00027,12]
[319347248,1710688687958,-20000.0,0.00027,15]
[319347249,1710688687984,-600.0,0.00027,28]
[319347250,1710688688008,-702.0,0.00027,15]
[319347251,1710688688038,-1400.32453439,0.000272,30]
[319347252,1710688688063,-554.89061024,0.00027397,30]
[319347253,1710688688086,-680.52216483,0.00027397,30]
[319347254,1710688688111,-510.0,0.00027397,120]
[319347255,1710688688135,-2902.85,0.00027397,10]
[319347256,1710688688158,-702.0,0.000275,16]
[319347257,1710688688182,-510.0,0.00027671,120]
[319347258,1710688688207,-510.0,0.00027945,120]
[319347259,1710688688229,-20000.0,0.00028,15]
[319347260,1710688688251,-702.0,0.00028,16]
[319347261,1710688688276,-600.0,0.00028,29]
[319347262,1710688688298,-510.0,0.00028219,120]
[319347263,1710688688320,-500.0,0.0002847,120]
[319347264,1710688688343,-510.0,0.00028493,120]
[319347265,1710688688368,-702.0,0.000285,17]
[319347266,1710688688391,-510.0,0.00028767,120]
[319347267,1710688688419,-300.0,0.00029,29]
[319347268,1710688688442,-69412.7516753,0.00029,30]
[319347269,1710688688466,-1200.0,0.00029,30]
[319347270,1710688688489,-7985.48687508,0.00029,120]
[319347271,1710688693950,-500000.0,0.00029,120]
[319347272,1710688698272,-101351.35812438,0.00029,120]
[319347273,1710688698294,-1213.294033,0.00029,17]
[319347274,1710688698316,-510.0,0.00029041,120]
[319347275,1710688698505,-510.0,0.00029315,120]
[319347276,1710688698530,-510.0,0.00029589,120]
[319347277,1710688698554,-1582.23394792,0.00029784,30]
[319347278,1710688698577,-155.77767652,0.00029789,20]
[319347279,1710688698600,-510.0,0.00029863,120]
[319347280,1710688698624,-10000.0,0.000299,14]
[319347281,1710688698650,-200000.0,0.0003,20]
[319347282,1710688698677,-185.82079898,0.0003,14]
[319347283,1710688698700,-30000.0,0.0003,10]
[319347284,1710688698722,-30000.0,0.0003,10]
[319347285,1710688698745,-30000.0,0.0003,10]
[319347286,1710688698767,-30000.0,0.0003,10]
[319347287,1710688698790,-30000.0,0.0003,10]
[319347288,1710688698812,-20000.0,0.0003,10]
[319347289,1710688698835,-8509.78528068,0.0003,10]
[319347290,1710688698856,-4961.73013852,0.0003,10]
[319347291,1710688706563,-1954.51463588,0.00025,10]
[319347292,1710688706605,-5038.26986148,0.0003,10]
[319347293,1710688706627,-500.0,0.0003,10]
[319347294,1710688706649,-500.0,0.0003,15]
[319347295,1710688706672,-5165.16740463,0.0003,10]
[319347296,1710688706696,-7002.19726019,0.0003,10]
[319347297,1710688706718,-23119.53,0.0003,10]
[319347298,1710688706741,-4651.0,0.0003,20]
[319347299,1710688706764,-2000.0,0.0003,14]
[319347300,1710688706785,-2500.81659351,0.0003,14]
[319347301,1710688706807,-15437.15921566,0.0003,30]
[319347302,1710688706830,-38609.37717977,0.0003,30]
[319347303,1710688706851,-20000.0,0.0003,30]
[319347304,1710688706873,-240.0,0.0003,120]
[319347305,1710688706904,-510.0,0.00030136,120]
[319347306,1710688706927,-2902.85,0.00030137,10]
[319347307,1710688706950,-8926.5,0.00030237,21]
[319347308,1710688706973,-1301.85050597,0.00030298,15]
[319347309,1710688706997,-510.0,0.0003041,120]
[319347310,1710688707023,-363365.70766638,0.000305,30]
[319347311,1710688707048,-510.0,0.00030684,120]
[319347312,1710688707073,-250.0,0.000308,30]
[319347313,1710688707095,-5498.2246785,0.00030852,10]
[319347314,1710688707120,-2556.40434222,0.0003089,10]
[319347315,1710688707142,-2500.0,0.00030895,10]
[319347316,1710688707166,-2500.0,0.000309,10]
[319347317,1710688707189,-2500.0,0.0003091,10]
[319347318,1710688707211,-2500.0,0.0003092,10]
[319347319,1710688707234,-2500.0,0.0003093,10]
[319347320,1710688707255,-1500.0,0.0003094,10]
[319347321,1710688707277,-2000.0,0.0003095,10]
[319347322,1710688707299,-510.0,0.00030958,120]
[319347323,1710688707322,-200000.0,0.00031,21]
[319347324,1710688707343,-2626.14,0.00031,15]
[319347325,1710688707365,-20000.0,0.00031,10]
[319347326,1710688707387,-500.0,0.00031,30]
[319347327,1710688707409,-500.0,0.00031,30]
[319347328,1710688707431,-500.0,0.00031,30]
[319347329,1710688707453,-500.00000001,0.00031,30]
[319347330,1710688707475,-1200.0,0.00031,32]
[319347331,1710688707498,-510.0,0.00031232,120]
[319347332,1710688707520,-591.22131793,0.00031405,17]
[319347333,1710688707542,-2028.72265792,0.00031484,11]
[319347334,1710688707565,-510.0,0.00031506,120]
[319347335,1710688707588,-170.15,0.00031644,91]
[319347336,1710688707609,-42855.08,0.00031644,10]
[319347337,1710688707633,-510.0,0.0003178,120]
[319347338,1710688707663,-200000.0,0.00032,22]
[319347339,1710688707685,-20000.0,0.00032,20]
[319347340,1710688707707,-723947.81696184,0.00032,11]
[319347341,1710688707730,-78621.38091816,0.00032,11]
[319347342,1710688707752,-30000.0,0.00032,30]
[319347343,1710688707775,-1200.0,0.00032,33]
[319347344,1710688707800,-365.34489848,0.00032054,120]
[319347345,1710688707823,-500.0,0.000321,10]
[319347346,1710688707850,-11153.63239823,0.000322,30]
[319347347,1710688707872,-561.0,0.000322,10]
[319347348,1710688707895,-131089.94150324,0.000325,30]
[319347349,1710688747668,-21388.00130004,0.00021974,14]
[319347350,1710688747695,-15000.0,0.00021974,15]
[319347351,1710688747719,-4800.0,0.00021974,10]
[319347352,1710688747741,-1112.21623214,0.00021974,10]
[319347353,1710688747762,-4563.51919705,0.00021974,10]
[319347354,1710688747785,-321.19001579,0.00021974,10]
[319347355,1710688747808,-500.0,0.00021974,10]
[319347356,1710688747831,-736.33260268,0.00021974,10]
[319347357,1710688747857,-30274.16983965,0.00021974,10]
[319347358,1710688747881,-43629.41628997,0.00021974,15]
[319347359,1710688747906,-9000.0,0.00021974,15]
[319347360,1710688747930,-308.88642141,0.00021974,10]
[319347361,1710688747953,-34341.88397788,0.00021974,10]
[319347362,1710688747977,-7603.08654534,0.00021974,14]
[319347363,1710688748000,-16259.83966262,0.00021974,14]
[319347364,1710688748025,-117754.2902267,0.00021974,14]
[319347365,1710688748054,-10018.01308972,0.00021974,14]
[319347366,1710688748077,-100000.0,0.00021974,15]
[319347367,1710688748103,-82389.15459901,0.00021974,10]
[319347368,1710688751810,-350191.43202841,0.00021974,10]
[319347369,1710688751832,-8000.0,0.00021974,15]
[319347370,1710688751855,-7125.89376229,0.00021974,20]
[319347371,1710688751877,-300.0,0.00021974,10]
[319347372,1710688751899,-300.0,0.00021974,11]
[319347373,1710688751922,-300.0,0.00021974,13]
[319347374,1710688751946,-300.0,0.00021974,14]
[319347375,1710688751970,-300.0,0.00021974,15]
[319347376,1710688751993,-300.0,0.00021974,19]
[319347377,1710688752015,-300.0,0.00021974,20]
[319347378,1710688752043,-300.0,0.00021974,27]
[319347379,1710688752066,-20000.0,0.00021974,120]
[319347380,1710688752090,-20000.0,0.00021974,90]
[319347381,1710688752112,-20000.0,0.00021974,90]
[319347382,1710688752137,-20000.0,0.00021974,60]
[319347383,1710688752160,-20000.0,0.00021974,30]
[319347384,1710688752182,-14892.18619896,0.00021974,90]
[319347385,1710688752205,-1000.0,0.00021974,30]
[319347386,1710688752227,-1000.0,0.00021974,30]
[319347387,1710688752250,-1014.45330204,0.00021974,30]
[319347388,1710688752275,-208.59778219,0.00021974,120]
[319347389,1710688752297,-1000.0,0.00021974,30]
[319347390,1710688752319,-150.0,0.00021974,30]
[319347391,1710688752341,-236.36,0.00021974,30]
[319347392,1710688752363,-1000.0,0.00021974,60]
[319347393,1710688752386,-1000.0,0.00021974,60]
[319347394,1710688752409,-1000.0,0.00021974,30]
[319347395,1710688752431,-1000.0,0.00021974,30]
[319347396,1710688752453,-1000.0,0.00021974,60]
[319347397,1710688752476,-7781.07692611,0.00021974,60]
[319347398,1710688754980,-12218.92307389,0.00021974,60]
[319347399,1710688755004,-1000.0,0.00021974,30]
[319347400,1710688755028,-1000.0,0.00021974,30]
[319347401,1710688755051,-1000.0,0.00021974,60]
[319347402,1710688755075,-1000.0,0.00021974,30]
[319347403,1710688755098,-1000.0,0.00021974,30]
[319347404,1710688755120,-317.08115994,0.00021974,60]
[319347405,1710688755145,-1000.0,0.00021974,30]
[319347406,1710688755173,-1000.0,0.00021974,30]
[319347407,1710688755197,-1000.0,0.00021974,30]
[319347408,1710688755224,-1000.0,0.00021974,30]
[319347409,1710688755248,-1000.0,0.00021974,60]
[319347410,1710688755270,-1000.0,0.00021974,30]
[319347411,1710688755293,-1000.0,0.00021974,30]
[319347412,1710688755318,-1000.0,0.00021974,30]
[319347413,1710688755341,-1000.0,0.00021974,30]
[319347414,1710688755365,-1000.0,0.00021974,30]
[319347415,1710688755387,-1000.0,0.00021974,30]
[319347416,1710688755411,-1000.0,0.00021974,30]
[319347417,1710688755435,-1000.0,0.00021974,30]
[319347418,1710688755464,-1000.0,0.00021974,30]
[319347419,1710688755490,-1000.0,0.00021974,30]
[319347420,1710688755515,-1000.0,0.00021974,30]
[319347421,1710688755538,-1000.0,0.00021974,30]
[319347422,1710688755561,-1000.0,0.00021974,30]
[319347423,1710688755584,-1000.0,0.00021974,30]
[319347424,1710688755607,-1000.0,0.00021974,30]
[319347425,1710688755629,-1000.0,0.00021974,30]
[319347426,1710688755652,-1000.0,0.00021974,30]
[319347427,1710688755893,-1000.0,0.00021974,30]
[319347428,1710688755917,-1000.0,0.00021974,30]
[319347429,1710688755940,-1000.0,0.00021974,30]
[319347430,1710688755963,-1000.0,0.00021974,30]
[319347431,1710688755988,-1000.0,0.00021974,30]
[319347432,1710688756010,-1000.0,0.00021974,30]
[319347433,1710688756035,-1000.0,0.00021974,30]
[319347434,1710688756063,-815.50476271,0.00021974,30]
[319347435,1710688756086,-1000.0,0.00021974,60]
[319347436,1710688756108,-1000.0,0.00021974,30]
[319347437,1710688756130,-1007.73272371,0.00021974,30]
[319347438,1710688756152,-1000.0,0.00021974,30]
[319347439,1710688756175,-1000.0,0.00021974,60]
[319347440,1710688756197,-1000.0,0.00021974,30]
[319347441,1710688756220,-1000.0,0.00021974,60]
[319347442,1710688756242,-1000.0,0.00021974,30]
[319347443,1710688756264,-1000.0,0.00021974,30]
[319347444,1710688756286,-3626.88115096,0.00021974,120]
[319347445,1710688756309,-1000.0,0.00021974,120]
[319347446,1710688756332,-417.19534398,0.00021974,30]
[319347447,1710688756354,-1000.0,0.00021974,120]
[319347448,1710688756376,-1000.0,0.00021974,60]
[319347449,1710688756399,-600.60258234,0.00021974,120]
[319347450,1710688756421,-160.74013792,0.00021974,120]
[319347451,1710688756444,-1341.75964113,0.00021974,120]
[319347452,1710688756469,-360.83539417,0.00021974,30]
[319347453,1710688756491,-1000.0,0.00021974,30]
[319347454,1710688756514,-636.22870528,0.00021974,120]
[319347455,1710688756536,-1000.0,0.00021974,30]
[319347456,1710688756559,-699.999999,0.00021974,120]
[319347457,1710688756590,-868.23319285,0.00021974,30]
[319347458,1710688756617,-1000.0,0.00021974,120]
[319347459,1710688756642,-492.78137739,0.00021974,120]
[319347460,1710688756665,-1000.0,0.00021974,60]
[319347461,1710688756687,-1000.0,0.00021974,30]
[319347462,1710688756710,-1000.0,0.00021974,30]
[319347463,1710688756733,-1000.0,0.00021974,60]
[319347464,1710688756756,-1000.0,0.00021974,30]
[319347465,1710688756779,-210.73193861,0.00021974,30]
[319347466,1710688756802,-1000.0,0.00021974,30]
[319347467,1710688756825,-539.16372742,0.00021974,30]
[319347468,1710688756852,-1000.0,0.00021974,30]
[319347469,1710688756874,-1112.71248243,0.00021974,120]
[319347470,1710688756897,-1000.0,0.00021974,60]
[319347471,1710688756921,-906.97,0.00021974,120]
[319347472,1710688756943,-1465.11984353,0.00021974,30]
[319347473,1710688756967,-309.03258655,0.00021974,30]
[319347474,1710688756989,-819.31494093,0.00021974,30]
[319347475,1710688757011,-198.1894723,0.00021974,120]
[319347476,1710688757034,-207.03794148,0.00021974,120]
[319347477,1710688757061,-672.66272204,0.00021974,30]
[319347478,1710688757083,-1389.35740574,0.00021974,60]
[319347479,1710688757106,-1069.85879289,0.00021974,30]
[319347480,1710688757130,-756.0,0.00021974,120]
[319347481,1710688757155,-219.92274805,0.00021974,30]
[319347482,1710688757184,-12890.63446904,0.00021974,30]
[319347483,1710688757210,-200.0,0.00021974,30]
[319347484,1710688757236,-389.336264,0.00021974,30]
[319347485,1710688757258,-735.272938,0.00021974,30]
[319347486,1710688757283,-1270.290039,0.00021974,30]
[319347487,1710688803827,-409.95,0.00026666,120]
[319347488,1710688803913,-948.49982042,0.000329,120]
[319347489,1710688803937,-200.0,0.00033,60]
[319347490,1710688803961,-308380.0,0.00033,120]
[319347491,1710688803986,-1003.0687293,0.00033,120]
[319347492,1710688804009,-5553.30877283,0.00033,120]
[319347493,1710688804033,-46200.0,0.00033,120]
[319347494,1710688804062,-1000.0,0.00034,120]
[319347495,1710688804085,-500.0,0.00034,120]
[319347496,1710688804111,-529.0,0.00034,120]
[319347497,1710688804135,-200.0,0.00035,120]
[319347498,1710688804159,-1000.0,0.00035,120]
[319347499,1710688804182,-5000.0,0.00035,120]
[319347500,1710688804206,-1000.0,0.00036,120]
[319347501,1710688804230,-150.0,0.00036438,60]
[319347502,1710688804252,-150.0,0.00036438,70]
[319347503,1710688804275,-150.0,0.00036438,80]
[319347504,1710688804298,-150.0,0.00036438,90]
[319347505,1710688804320,-1000.0,0.00037,120]
[319347506,1710688804343,-1000.0,0.00037,120]
[319347507,1710688804366,-10549.5,0.0003731,61]
[319347508,1710688804388,-150.0,0.000375,120]
[319347509,1710688804411,-10373.0762793,0.00037999,120]
[319347510,1710688804434,-1000.0,0.00038,120]
[319347511,1710688804456,-3279.44002812,0.00038,120]
[319347512,1710688804479,-847.73,0.00038356,120]
[319347513,1710688804502,-1000.0,0.000389,60]
[319347514,1710688804526,-1000.0,0.00039,120]
[319347515,1710688804549,-361.34308306,0.00039,60]
[319347516,1710688804573,-1114.2809975,0.0004,120]
[319347517,1710688804607,-200.0,0.0004,120]
[319347518,1710688804632,-2751.36409585,0.0004,120]
[319347519,1710688804656,-1567.01,0.0004,120]
[319347520,1710688804680,-615.31868963,0.0004,120]
[319347521,1710688804703,-4534.71034559,0.0004,120]
[319347522,1710688804726,-25000.0,0.0004,60]
[319347523,1710688804749,-150.03903916,0.0004,120]
[319347524,1710688804772,-400.0,0.0004,120]
[319347525,1710688804794,-300.0,0.0004,120]
[319347526,1710688804818,-1013.83992011,0.0004,120]
[319347527,1710688804841,-200.0,0.0004,120]
[319347528,1710688804865,-1674.72500465,0.00040073,120]
[319347529,1710688804889,-36411.84579444,0.000408,120]
[319347530,1710688804912,-11359.6,0.00040847,82]
[319347531,1710688804935,-2651.11814532,0.00041079,120]
[319347532,1710688804958,-299.94885521,0.00041095,120]
[319347533,1710688819267,-531.07607617,0.00024,30]
[319347534,1710688819291,-201.67065339,0.00024,33]
[319347535,1710688819317,-16974.73102066,0.000247,31]
[319347536,1710688819343,-300282.30993053,0.00025,30]
[319347537,1710688819386,-26531.11661929,0.0003,30]
[319347538,1710688819408,-15437.15921566,0.0003,30]
[319347539,1710688819431,-20000.0,0.0003,30]
[319347540,1710688819457,-500.0,0.00031,30]
[319347541,1710688819479,-500.0,0.00031,30]
[319347542,1710688819515,-20901.57064249,0.00032,30]
[319347543,1710688819542,-7943.57789028,0.000322,30]
[319347544,1710688819567,-16528.15884969,0.000325,30]
[319347545,1710688819593,-500.0,0.0003264,30]
[319347546,1710688819615,-639.60194589,0.0003264,30]
[319347547,1710688819643,-150.0,0.00032877,30]
[319347548,1710688819667,-150.0,0.00032877,30]
[319347549,1710688819689,-150.0,0.00032877,30]
[319347550,1710688819711,-150.0,0.00032877,30]
[319347551,1710688819734,-150.0,0.00032877,30]
[319347552,1710688819757,-150.0,0.00032877,30]
[319347553,1710688819781,-150.0,0.00032877,30]
[319347554,1710688819802,-150.0,0.00032877,30]
[319347555,1710688819824,-189.30866653,0.00032877,30]
[319347556,1710688819845,-12944.07524974,0.000329,30]
[319347557,1710688819867,-1121.04365236,0.000329,30]
[319347558,1710688819889,-909.36533844,0.0003298,30]
[319347559,1710688819911,-200000.0,0.00033,33]
[319347560,1710688819934,-200.0,0.00033,33]
[319347561,1710688819955,-2000.0,0.00033,30]
[319347562,1710688819977,-35008.0,0.00033,30]
[319347563,1710688820000,-600.0,0.00033,34]
[319347564,1710688820022,-476.0,0.00033,30]
[319347565,1710688820047,-50000.0,0.00033,30]
[319347566,1710688820070,-103452.82498787,0.00033,30]
[319347567,1710688820096,-7790.29667847,0.00033,30]
[319347568,1710688820118,-113001.56304552,0.00033,30]
[319347569,1710688820140,-1002.0,0.000332,30]
[319347570,1710688820165,-9738.0,0.00033773,41]
[319347571,1710688820187,-10000.0,0.000338,30]
[319347572,1710688820212,-22896.54953702,0.00034,34]
[319347573,1710688826192,-177103.45046298,0.00034,34]
[319347574,1710688826216,-600.0,0.00034,35]
[319347575,1710688826241,-200000.0,0.00035,35]
[319347576,1710688826463,-250.0,0.00035,35]
[319347577,1710688826486,-19443.35286274,0.00035,30]
[319347578,1710688826511,-600.0,0.00035,36]
[319347579,1710688826535,-50000.0,0.00035,30]
[319347580,1710688826557,-42034.17495224,0.00035,30]
[319347581,1710688826579,-6588.22494773,0.000351,30]